Cogmind - Beta 13 *** ADVENTURER MODE // 2024.04.05 @ 15:25:03 Player: Koritus Result: Destroyed by L-41 Fighter with Axe Performance ------------- Evolutions (3) 1500 Regions Visited (7) 1400 Robots Destroyed (62) 310 Value Destroyed (2062) 2062 Prototype IDs (0) 0 Alien Tech Used (0) 0 Bonus (300) 300 TOTAL SCORE: 5572 Bonus ------- Aligned with FarCom 300 Cogmind --------- Core Integrity 0/700 Matter 295/300 Energy 100/100 System Corruption 2% Temperature Cool (0) Movement Core (200) Ox3 Location -7/Lower Caves Parts ------- > --- POWER (2) -------- (None) > --- PROPULSION (5) --- (None) > --- UTILITY (3) ------ Medium Storage Unit > --- WEAPON (3) ------- (None) > --- INVENTORY (10) --- Improved Heat Sink Medium Storage Unit Advanced ECM Suite Peak State ------------ > --- POWER ------------ Improved Deuterium Engine Improved Deuterium Engine > --- PROPULSION ------- Carbon-fiber Leg Carbon-fiber Leg Carbon-fiber Leg Carbon-fiber Leg Improved Titanium Leg > --- UTILITY ---------- Medium Storage Unit Improved Light Armor Plating Hacking Suite > --- WEAPON ----------- Pulse Rifle Advanced Assault Cannon Gauss Cannon > --- INVENTORY -------- Improved Hover Unit Gravmag System Gravmag System VTOL Module Improved Heat Sink Medium Storage Unit Advanced Weight Redist. System Advanced ECM Suite Gauss Cannon Spear [Rating: 45] Favorites ----------- Power Improved Deuterium Engine Engine Improved Deuterium Engine Power Core Light Nuclear Core Propulsion Aluminum Leg Leg Aluminum Leg Hover Unit Improved Hover Unit Flight Unit VTOL Module Utility Medium Storage Unit Device Advanced Weight Redist. System Storage Medium Storage Unit Processor Targeting Computer Hackware Hacking Suite Protection Improved Light Armor Plating Weapon Gauss Cannon Energy Gun Pulse Rifle Energy Cannon Light EM Pulse Cannon Ballistic Gun Assault Rifle Ballistic Cannon Gauss Cannon Slashing Weapon Ripper Piercing Weapon Spear Build | -11 -10 -10 -10 -9 -8 -7 -7 ------- Run | Yrd Mat Min Exi Min Mat Fac Low Slots Evolved 6 | . . . . . 4 2 . Power 1 | . . . . . . 1 . Propulsion 3 | . . . . . 2 1 . Utility 1 | . . . . . 1 . . Weapon 1 | . . . . . 1 . . Parts Attached 84 | 6 3 1 2 7 13 15 37 Power 9 | 1 . 1 . . 2 3 2 Engine 6 | 1 . 1 . . 1 2 1 Core 3 | . . . . . 1 1 1 Reactor . | . . . . . . . . Propulsion 39 | 2 . . 1 3 3 7 23 Treads . | . . . . . . . . Leg 26 | 2 . . 1 3 3 7 10 Wheel . | . . . . . . . . Hover 7 | . . . . . . . 7 Flight 6 | . . . . . . . 6 Utility 14 | . 2 . 1 3 4 1 3 Device 2 | . . . . . 1 . 1 Storage 6 | . 1 . 1 3 1 . . Processor 2 | . 1 . . . 1 . . Hackware 1 | . . . . . 1 . . Protection 3 | . . . . . . 1 2 Artifact . | . . . . . . . . Weapon 22 | 3 1 . . 1 4 4 9 Energy Gun 4 | 1 . . . . 2 1 . Energy Cannon 1 | . 1 . . . . . . Ballistic Gun 7 | 2 . . . 1 2 . 2 Ballistic Cannon 6 | . . . . . . 3 3 Launcher . | . . . . . . . . Special Weapon . | . . . . . . . . Impact Weapon . | . . . . . . . . Slashing Weapon 2 | . . . . . . . 2 Piercing Weapon 2 | . . . . . . . 2 Special Melee Weapon . | . . . . . . . . Unidentified Prototypes . | . . . . . . . . Parts Lost 14 | . . . . . . . 14 Power 1 | . . . . . . . 1 Propulsion 9 | . . . . . . . 9 Utility 1 | . . . . . . . 1 Weapon 3 | . . . . . . . 3 Highest Loss Streak 5 | . . . . . . . 5 To Critical Strikes 1 | . . . . . . . 1 Average Slot Usage (%) 92 | . 91 100 92 99 94 99 83 Engine 10 | . 14 14 14 14 6 14 6 Leg 29 | . 28 28 28 28 35 38 21 Hover 3 | . . . . . . . 10 Device 2 | . . . . . . . 6 Storage 10 | . 6 14 14 27 16 7 7 Processor 4 | . 13 14 7 . 6 5 . Hackware 3 | . . . . . . 7 6 Energy Gun 3 | . . . . . 2 11 . Energy Cannon 4 | . 13 14 14 9 . . . Ballistic Gun 8 | . 14 14 14 17 23 2 3 Ballistic Cannon 4 | . . . . . . 7 8 Piercing Weapon 1 | . . . . . . . 5 Naked Turns . | . . . . . . . . Heaviest Build 49 | 7 14 14 19 20 26 49 44 Greatest Support 84 | 20 20 20 20 20 45 80 84 Greatest Overweight (x) 3 | . . . . . . . 3 Average Overweight (x) . | . . . . . . . . Largest Inventory Capacity 10 | 5 8 8 10 10 10 10 10 Average Capacity 9 | 5 6 8 9 10 10 10 10 Most Carried 10 | 3 4 6 6 7 10 10 10 Average Carried 6 | . 3 4 4 5 8 9 6 Final Capacity 10 | 5 8 8 10 10 10 10 10 Final Carried 10 | 3 3 6 3 6 9 10 3 Class Distribution -------------------- 34% | Mutant 28% | Scavenger-Skirmisher 23% | Scavenger-Mutant 8% | Hacker-Mutant 3% | Hacker-Skirmisher Dominant Class ---------------- Mutant | -10/Materials Mutant | -10/Mines Mutant | -10/Exiles Mutant | -9/Mines Scavenger-Skirmisher | -8/Materials Scavenger-Skirmisher | -7/Factory Scavenger-Mutant | -7/Lower Caves Resources | -11 -10 -10 -10 -9 -8 -7 -7 ----------- Run | Yrd Mat Min Exi Min Mat Fac Low Matter Collected 2190 | 286 61 40 . 120 353 416 914 Remotely . | . . . . . . . . Salvage Created 1938 | 51 125 173 . 216 483 184 706 Parts 116 | 5 13 14 . 17 29 16 22 Haulers Intercepted . | . . . . . . . . Recyclers Shooed . | . . . . . . . . Parts Field Recycled . | . . . . . . . . Retrieved Matter . | . . . . . . . . Parts Self-Destructed 12 | . . . . . . . 12 Prevented . | . . . . . . . . Kills | -11 -10 -10 -10 -9 -8 -7 -7 ------- Run | Yrd Mat Min Exi Min Mat Fac Low Combat Hostiles Destroyed 53 | 1 4 8 . 7 10 4 19 Melee 6 | . . . . . . . 6 Guns 24 | 1 3 2 . 2 10 3 3 Cannons 19 | . 1 2 . 5 . 1 10 AOE 4 | . . 4 . . . . . Classes Destroyed 10 | 2 2 . . . 2 2 2 Worker 1 | . . . . . . 1 . Tunneler 3 | 1 . . . . . 2 . Watcher 5 | . 1 . . . 2 2 . Swarmer 19 | . 3 6 . 4 3 . 3 Grunt 19 | 1 1 2 . 3 3 . 9 Sentry 5 | . . . . . 2 1 2 Hunter 3 | . . . . . 2 1 . Programmer 2 | . . . . . . 2 . Behemoth 1 | . . . . . . . 1 Thug 1 | . . . . . . . 1 Butcher 3 | . . . . . . . 3 Best Kill Streak 5 | 2 4 3 . 4 5 3 5 Combat Bots Only 5 | 1 3 3 . 4 5 1 5 Max Kills in Single Turn 3 | 1 1 3 . 2 1 2 2 Gunslinging . | . . . . . . . . Exploded 3 | . . 3 . . . . . Melee 1 | . . . . . . . 1 Uniques/NPCs Destroyed . | . . . . . . . . Combat | -11 -10 -10 -10 -9 -8 -7 -7 -------- Run | Yrd Mat Min Exi Min Mat Fac Low Hostile Shots Fired 402 | 8 11 22 . 27 63 61 210 Missed 112 | 1 2 4 . 5 25 19 56 Damage Taken 3510 | 59 57 150 . 180 391 361 2312 Core 839 | 8 20 19 . 26 40 35 691 Absorbed by Shields . | . . . . . . . . Ignored by Resistances 991 | 20 19 47 . 57 116 110 622 Core Remaining (%) 86 | 96 . . . 70 92 . . Volleys Fired 162 | 6 7 10 . 10 35 32 62 Largest 3 | 2 2 2 . 2 3 3 3 Hottest 166 | 40 76 76 . 76 111 166 159 Shots Fired 352 | 12 14 20 . 20 105 81 100 Gun 223 | 12 7 10 . 10 105 47 32 Cannon 129 | . 7 10 . 10 . 34 68 Launcher . | . . . . . . . . Special . | . . . . . . . . Kinetic 276 | 12 7 10 . 10 101 42 94 Thermal 39 | . . . . . 4 29 6 Explosive . | . . . . . . . . Electromagnetic 37 | . 7 10 . 10 . 10 . Robot Hit Streak 14 | 8 4 5 . 6 14 8 14 Robot Miss Streak 5 | 1 3 1 . 3 5 3 3 Penetration Max 1 | . . . . . 1 1 1 Secondary Targets 1 | . . . . . 1 . . Max Gunslinging Chain 1 | . . . . . 1 . . Shots Hit Robots 267 | 11 7 13 . 12 80 51 93 Core Hits 97 | 3 5 8 . 8 29 15 29 Critical Kills . | . . . . . . . . Critical Parts Destroyed . | . . . . . . . . Critical Strikes 12 | . . . . . . 5 7 Burn 1 | . . . . . . 1 . Blast 9 | . . . . . . 4 5 Sever 2 | . . . . . . . 2 Melee Attacks 20 | . . . . . . . 20 Impact . | . . . . . . . . Slashing 18 | . . . . . . . 18 Piercing 2 | . . . . . . . 2 Sneak Attacks 4 | . . . . . . . 4 Combat Hostiles . | . . . . . . . . Follow-up Attacks . | . . . . . . . . Damage Inflicted 5243 | 152 131 332 . 245 880 1055 2448 Guns 2171 | 152 52 66 . 66 880 501 454 Cannons 2215 | . 79 105 . 175 . 535 1321 Explosions 161 | . . 161 . . . . . Melee 673 | . . . . . . . 673 Ramming 23 | . . . . 4 . 19 . Kinetic 3523 | 152 52 66 . 66 845 634 1708 Thermal 589 | . . 161 . . 35 326 67 Explosive . | . . . . . . . . Electromagnetic 435 | . 79 105 . 175 . 76 . Impact . | . . . . . . . . Slashing 645 | . . . . . . . 645 Piercing 28 | . . . . . . . 28 Highest Corruption 2 | . . . . . . 2 2 Average Corruption 1 | . . . . . . 1 2 Corruption Purged . | . . . . . . . . Corruption Blocked . | . . . . . . . . Effects 24 | . . . . . . 5 19 Message Errors 7 | . . . . . . 2 5 Matter Fused 6 | . . . . . . 2 4 Heat Flow Errors 3 | . . . . . . 1 2 Energy Discharges 3 | . . . . . . . 3 Parts Rejected 2 | . . . . . . . 2 Data Loss (minor) 3 | . . . . . . . 3 Overload Shots . | . . . . . . . . Overflow Damage 157 | . . 17 . . . . 140 Projectiles . | . . . . . . . . Explosions 17 | . . 17 . . . . . Melee 140 | . . . . . . . 140 Knockbacks 16 | . . . . . . 4 12 Impact . | . . . . . . . . Kinetic 15 | . . . . . . 4 11 Secondary 1 | . . . . . . . 1 Self-Inflicted Damage 29 | . . 29 . . . . . Shots 1 | . . 1 . . . . . Rammed . | . . . . . . . . Targets Rammed 3 | . . . . 2 . 1 . Kicked 3 | . . . . 2 . 1 . Crushed . | . . . . . . . . Highest Temperature 780 | . 45 42 . 129 186 546 780 Average Temperature 137 | . 18 19 . 51 62 180 147 Received Heat Transfer 1075 | 42 6 21 . 54 162 48 742 Effects 30 | . . . . . . 11 19 Shutdowns 10 | . . . . . . 3 7 Energy Bleed 3 | . . . . . . 3 . Interference 6 | . . . . . . 3 3 Matter Decay 1 | . . . . . . 1 . Short Circuit 4 | . . . . . . . 4 Damage (minor) 1 | . . . . . . . 1 Damage (major) 4 | . . . . . . 1 3 Damage (core) 1 | . . . . . . . 1 Siege Activations . | . . . . . . . . Robots Corrupted . | . . . . . . . . Combat Hostiles . | . . . . . . . . Parts Fried 1 | . . 1 . . . . . Impact Corruptions . | . . . . . . . . Robots Melted . | . . . . . . . . Combat Hostiles . | . . . . . . . . Parts Melted 1 | . . . . . . 1 . Heat Transferred 1162 | . . 200 . . 74 740 148 Parts Sabotaged . | . . . . . . . . Parts Stolen . | . . . . . . . . Parts Stripped . | . . . . . . . . Power Chain Reactions 2 | . . 2 . . . . . Alert | -11 -10 -10 -10 -9 -8 -7 -7 ------- Run | Yrd Mat Min Exi Min Mat Fac Low Peak Influence 391 | 25 160 287 . 169 391 189 . Initial 74 | . 13 52 . . 55 74 . Average 119 | 5 86 244 . 96 219 75 . Maximum Alert Level 1 | . . 1 . . 1 . . Low Security (%) 82 | 100 100 22 . 100 42 100 . Level 1 17 | . . 77 . . 57 . . Level 2 . | . . . . . . . . Level 3 . | . . . . . . . . Level 4 . | . . . . . . . . Level 5 . | . . . . . . . . High Security . | . . . . . . . . Max Security . | . . . . . . . . Squads Dispatched 6 | . 2 . . . 3 1 . Investigation 3 | . 2 . . . 1 . . Extermination 1 | . . . . . . 1 . Reinforcement 2 | . . . . . 2 . . Assault . | . . . . . . . . Garrison . | . . . . . . . . Intercept . | . . . . . . . . Searches Triggered . | . . . . . . . . Construction Impeded . | . . . . . . . . Haulers Reinforced . | . . . . . . . . Active Scanning Responses . | . . . . . . . . Cargo Convoy Interrupts . | . . . . . . . . Stealth | -11 -10 -10 -10 -9 -8 -7 -7 --------- Run | Yrd Mat Min Exi Min Mat Fac Low Distress Signals 4 | . 1 . . . 2 1 . Communications Jammed . | . . . . . . . . Distress Signals . | . . . . . . . . Times Spotted 66 | 1 6 8 . 8 14 10 19 Peak Tracking Total 7 | 1 2 3 . 4 6 3 7 Tactical Retreats 2 | . . . . . 1 . 1 Traps | -11 -10 -10 -10 -9 -8 -7 -7 ------- Run | Yrd Mat Min Exi Min Mat Fac Low Traps Triggered 2 | . 2 . . . . . . Indirectly . | . . . . . . . . Trap Hack Attempts . | . . . . . . . . Triggered . | . . . . . . . . Disarmed . | . . . . . . . . Reprogrammed . | . . . . . . . . Reused . | . . . . . . . . Traps Extracted . | . . . . . . . . Installed . | . . . . . . . . Triggered . | . . . . . . . . Machines | -11 -10 -10 -10 -9 -8 -7 -7 ---------- Run | Yrd Mat Min Exi Min Mat Fac Low Machines Disabled 3 | . . 2 . 1 . . . Max in Single Turn 2 | . . 2 . 1 . . . Machines Repaired . | . . . . . . . . Machines Dismantled . | . . . . . . . . Machines Sabotaged . | . . . . . . . . Overloaded Fab Kills . | . . . . . . . . Hacking | -11 -10 -10 -10 -9 -8 -7 -7 --------- Run | Yrd Mat Min Exi Min Mat Fac Low Machines Accessed 9 | . 1 . 4 . 1 3 . Terminals 3 | . 1 . . . . 2 . Fabricators . | . . . . . . . . Repair Stations 1 | . . . . . . 1 . Recycling Units 1 | . . . . . 1 . . Scanalyzers . | . . . . . . . . Garrison Access . | . . . . . . . . Total Hacks 57 | . 2 . 49 . 1 5 . Successful 53 | . 1 . 49 . . 3 . Failed 4 | . 1 . . . 1 2 . Catastrophic 2 | . 1 . . . 1 . . Database Lockouts . | . . . . . . . . Manual 1 | . . . 1 . . . . Terminals 6 | . 2 . . . . 4 . Fabricators . | . . . . . . . . Repair Stations 1 | . . . . . . 1 . Recycling Units 1 | . . . . . 1 . . Scanalyzers . | . . . . . . . . Garrison Access . | . . . . . . . . Terminal Hacks 53 | . 1 . 49 . . 3 . Record 52 | . 1 . 49 . . 2 . Open DSF 1 | . . . . . . 1 . Fabricator Hacks . | . . . . . . . . Repair Station Hacks . | . . . . . . . . Recycling Unit Hacks . | . . . . . . . . Scanalyzer . | . . . . . . . . Garrison Access Hacks . | . . . . . . . . Unauthorized Hacks . | . . . . . . . . Terminals . | . . . . . . . . Fabricators . | . . . . . . . . Repair Stations . | . . . . . . . . Recycling Units . | . . . . . . . . Scanalyzers . | . . . . . . . . Garrison Access . | . . . . . . . . Data Cores Recovered . | . . . . . . . . Used . | . . . . . . . . Hacking Detections 2 | . 1 . . . . 1 . Full Trace Events . | . . . . . . . . Feedback Events . | . . . . . . . . Feedback Blocked . | . . . . . . . . Robot Schematics Acquired . | . . . . . . . . Robots Built . | . . . . . . . . Authchips . | . . . . . . . . Time . | . . . . . . . . Total Robot Build Rating . | . . . . . . . . Part Schematics Acquired . | . . . . . . . . Parts Built . | . . . . . . . . Authchips . | . . . . . . . . Time . | . . . . . . . . Total Part Build Rating . | . . . . . . . . Parts Repaired . | . . . . . . . . Time . | . . . . . . . . Parts Recycled . | . . . . . . . . Recycled Matter . | . . . . . . . . Retrieved Matter . | . . . . . . . . Retrieved Components . | . . . . . . . . Parts Scanalyzed . | . . . . . . . . Part Schematics Acquired . | . . . . . . . . Parts Damaged . | . . . . . . . . Bothacking | -11 -10 -10 -10 -9 -8 -7 -7 ------------ Run | Yrd Mat Min Exi Min Mat Fac Low Used RIF Installer . | . . . . . . . . Robots Hacked . | . . . . . . . . Non-combat . | . . . . . . . . Combat . | . . . . . . . . Robot Hacks Applied . | . . . . . . . . Relay Couplers Released . | . . . . . . . . Fabnet Peak Effective % . | . . . . . . . . Robots Rewired . | . . . . . . . . Allies Hacked . | . . . . . . . . Hacks Repelled . | . . . . . . . . Allies | -11 -10 -10 -10 -9 -8 -7 -7 -------- Run | Yrd Mat Min Exi Min Mat Fac Low Total Allies . | . . . . . . . . Largest Group . | . . . . . . . . Highest-Rated Group . | . . . . . . . . Highest-Rated Ally . | . . . . . . . . Total Orders . | . . . . . . . . Ally Attacks . | . . . . . . . . Total Damage . | . . . . . . . . Kills . | . . . . . . . . Allies Corrupted . | . . . . . . . . Allies Melted . | . . . . . . . . Intel | -11 -10 -10 -10 -9 -8 -7 -7 ------- Run | Yrd Mat Min Exi Min Mat Fac Low Robot Analysis Total . | . . . . . . . . Derelict Logs Recovered 4 | . . 1 . . . . 3 Drone Launches . | . . . . . . . . Drone Recoveries . | . . . . . . . . Exploration | -11 -10 -10 -10 -9 -8 -7 -7 ------------- Run | Yrd Mat Min Exi Min Mat Fac Low Turns Passed 5263 | 97 217 245 970 339 486 1237 1672 Spaces Moved 3888 | 67 155 175 804 224 275 907 1281 Core 27 | 18 . . . . . . 9 Treads . | . . . . . . . . Legs 3466 | 49 155 175 804 224 275 907 877 Wheels . | . . . . . . . . Hover 395 | . . . . . . . 395 Flight . | . . . . . . . . Fastest Speed 50 | 50 120 120 120 120 120 120 52 Average Speed 115 | 101 120 120 120 120 120 120 105 Slowest Speed 200 | 120 120 120 120 120 120 122 200 Overloaded Moves . | . . . . . . . . Propulsion Burnouts . | . . . . . . . . Robots Hopped . | . . . . . . . . Cave-ins Triggered . | . . . . . . . . Exploration Rate (%) 46 | 6 36 51 91 50 22 20 93 Regions Visited 7 Branch Regions 4 Pre-discovered Areas 2 | . . . 1 . . . 1 Known Exits Taken . | . . . . . . . . Unknown Exits Taken 7 | 1 1 1 1 1 1 1 . Scrap Searched 5 | . . 1 . . . . 4 Spaces Dug . | . . . . . . . . Terrain Destroyed 51 | . . 27 . . . 10 14 Melee . | . . . . . . . . Projectile 24 | . . . . . . 10 14 AOE 27 | . . 27 . . . . . Terrain Rammed . | . . . . . . . . Walls Destroyed . | . . . . . . . . Machines Disabled . | . . . . . . . . Actions | -11 -10 -10 -10 -9 -8 -7 -7 --------- Run | Yrd Mat Min Exi Min Mat Fac Low Total 4357 | 82 171 190 811 273 361 992 1477 Wait 100 | . 5 1 . 24 12 14 44 Move 3881 | 66 154 174 803 223 274 906 1281 Hop . | . . . . . . . . Pick Up 39 | 3 1 3 . 3 14 8 7 Fast Attach 42 | 5 2 1 2 3 4 11 14 Attach 31 | 1 . . . 2 5 3 20 Detach 12 | 1 . . . 1 2 . 8 Swap 11 | . 1 . . 2 4 1 3 Drop 56 | . 1 1 6 3 11 16 18 Fire 162 | 6 7 10 . 10 35 32 62 Melee 20 | . . . . . . . 20 Ram . | . . . . . . . . Kick 3 | . . . . 2 . 1 . Crush . | . . . . . . . . Escape Stasis . | . . . . . . . . Rewire . | . . . . . . . . Trap . | . . . . . . . . Miscellaneous . | . . . . . . . . Route ------- -11/Scrapyard -10/Materials -10/Mines (discovered 3 exits: [*Mat x2] / *Exi) -10/Exiles (discovered 2 exits: [*Min x2]) -9/Mines -8/Materials -7/Factory (discovered 2 exits: *Sto / [*Low]) -7/Lower Caves History --------- Turn | Location | Event 2 | -11/Scrapyard | Met Revision 17 59 | -11/Scrapyard | Discovered new exit (range 8) 98 | -11/Scrapyard | Entered Materials 288 | -10/Materials | Discovered new exit (range 6) 310 | -10/Materials | Build established: Mutant 315 | -10/Materials | Entered Mines 351 | -10/Mines | Met a Derelict bent on vengeance 436 | -10/Mines | Received a Rocket Launcher from a helpful Derelict 453 | -10/Mines | Discovered new exit (range 11) 536 | -10/Mines | Discovered new exit (range 9) 554 | -10/Mines | Deemed a non-threat by the Exiles lab entrance 554 | -10/Mines | Discovered new exit (range 5) 560 | -10/Mines | Entered Exiles 578 | -10/Exiles | Discovered new exit (range 15) 592 | -10/Exiles | Met 8R-AWN 612 | -10/Exiles | Met EX-HEX 674 | -10/Exiles | Met EX-DEC 701 | -10/Exiles | Visited The Gauntlet 846 | -10/Exiles | Learned location of Zion (-7) 919 | -10/Exiles | Discovered new exit (range 14) 1015 | -10/Exiles | Met EX-BIN 1087 | -10/Exiles | Aligned with FarCom system 1088 | -10/Exiles | Given EX-Vault access code 1530 | -10/Exiles | Entered Mines 1781 | -9/Mines | Assembled infested the area 1840 | -9/Mines | Discovered new exit (range 5) 1869 | -9/Mines | Entered Materials 1869 | -8/Materials | Evolved 4 slots: Propulsion x2, Utility x1, Weapon x1 2179 | -8/Materials | Build established: Scavenger-Skirmisher 2186 | -8/Materials | Discovered new exit (range 15) 2355 | -8/Materials | Entered Factory 2355 | -7/Factory | Evolved 2 slots: Power x1, Propulsion x1 2356 | -7/Factory | Identified exit to Storage 2362 | -7/Factory | Identified exit to DSF 3361 | -7/Factory | Discovered new exit (range 15) 3592 | -7/Factory | Entered Lower Caves 3594 | -7/Lower Caves | Attracted the attention of an 0b10 checkpoint 3761 | -7/Lower Caves | Ambushed by wild Derelicts 3864 | -7/Lower Caves | Spotted B-75 Beast 3886 | -7/Lower Caves | Encountered a Warlord checkpoint 3908 | -7/Lower Caves | Build established: Hacker-Mutant 3966 | -7/Lower Caves | Destroyed B-75 Beast 4316 | -7/Lower Caves | Learned Factory emergency access door positions 4324 | -7/Lower Caves | Build established: Scavenger-Mutant 5065 | -7/Lower Caves | Attracted the attention of an 0b10 outpost 5085 | -7/Lower Caves | Core integrity fell below 50% 5145 | -7/Lower Caves | Lost 5 parts (3n2w) 5249 | -7/Lower Caves | Core integrity fell below 20% 5264 | -7/Lower Caves | Destroyed by L-41 Fighter with Axe Last Messages --------------- Sneak attack on G-47 Trooper. Carbon-fiber Leg severed. Sneak attack on G-47 Trooper. Destroyed Aluminum Leg. Destroyed Imp. Heat Sink. G-47 Trooper destroyed. Carbon-fiber Leg destroyed. Aluminum Leg fries itself beyond repair. Lgt. Nuclear Core fries itself beyond repair. Adv. Weight Redist. System destroyed. L-41 Fighter Imp. Deuterium Engine severed. Imp. Light Armor Plating severed. Lgt. Nuclear Core destroyed. Imp. Hover Unit destroyed. Ripper severed. Particle Gun fries itself beyond repair. Acquired Ripper. System corrupted: Ripper rejected. VTOL Module severed. VTOL Module destroyed. Map ----- +----------------------------------------------------+ | ?????????????????????????????????????????????# | | ?????????????????????????????????????????????# | | ?????????????????????????????????????????????# | | ????????????????????????????????????????????## | | ????????????????????????????????????????????# ! | | ??######???????????####???#########??????#### | | ### ##?????????## ##### ##???###% % "" | | #?#####???# ## ##?##"% "# | | ### ##?## ## ### # | | #?# ### ## = # | | ##### ### ### | | #### ###### ##?## """#?? | | ### #????####???# ] " ##?? | | #???????????# ""##??? | | ##### #?###??##???###" "#" ""##??? | | ##??### ###*### #??% # ## % #??? | | ###### ] "##% #### ##??? | | ## #!######## ###%% ######??# #???? | | ### ## #!%""""# ;##% ???###???# ##### | | ##?# ##=#=* # ### ???? ???# | | #### ##%+!%/= # ;##?????# #??# | | # ## ## #% #+#; ##??????# #?## ###### | | ## ## # # ##??????#%%### ##????? | | ?# # #"""# ###????# %## #?????? | | ## ##### ###### l ##??## # #?????? | | ### ##???# @ #??# ##?????? | | ######????## ####;#####??## ###??????? | | # #?????????# #??# #???##### #????????? | | ## #????????# #??#####?# ## ##????????? | | ?# #???????## ##??## ### #?????????? | | ?# #????????# ##???# ### ###???????? | | ### ##?????#### #???## #?# ####????? | | #?###???#### ##### ### ##???? | | #??????## #???? | | ###???## #???? | | ##?## ### ### ####???? | | ### ##?### #### #########??????? | | # #????# #??## #?????????????? | | ## ##????## #???# ### ##?????????????? | | ?# ######??????# #?### #####??????????????? | | # #??????????? #?# #?????????????????? | | ##??????????? ##?# ####?????????????????? | | # ##???????????####??######????????????????????? | | #####????????????????????????????????????????????? | | ?????????????????????????????????????????????????? | | ?????????????????????????????????????????????????? | | ?????????????????????????????????????????????????? | | ?????????????????????????????????????????????????? | | ?????????????????????????????????????????????????? | | ?????????????????????????????????????????????????? | +----------------------------------------------------+ Best States ------------- Heat Dissipation 45 Energy Generation 27 Energy Capacity 480 Matter Stores 450 Matter Capacity 450 Sight Range 16 Terrain Scan Density 85 Additional Mass Support 9 Armor Coverage 150 Resistance: KI 20 Resistance: TH 20 Resistance: EX 20 Resistance: EM 20 Resistance: I 20 Resistance: S 20 Resistance: P 20 Evasion (%) 55 Targeting Accuracy 5 Offensive Hacking 20 Item Schematics ----------------- None Robot Schematics ------------------ None Fabricated ------------ Nothing Alien Tech Used ----------------- None Achievements -------------- I Survived The Infestation Tourist Challenges ------------ None Game ------ Seed StoragePotentialMagmablaster Manual? 0 Play Time 01:16:54 Cumulative 3.5 hours Start 2024.04.05 @ 14:05:41 End 2024.04.05 @ 15:25:03 Sessions 1 Manual Loads 0 Difficulty Adventurer Special Mode None Game No. 2 Rogue 0 Adventurer 2 Explorer 0 Win Type - Total 0 Types 0/0/0/0/0/0/0/0/0 Lore% 9 Gallery% 6 Achievement% 5 Wizard Run 0 Options --------- Layout 1 ASCII 0 Keyboard 0 Movement Mouse Keybinds 0 Fullscreen 1 Font 24/Smallcaps Map View 50x35 Zoom Use 0% Tactical HUD 0 Map Filters NONE Filters NONE Steam 1 RUN: 2f452843-5c0a-4ade-b463-453f5de4df43